fUST/lending_fUST_20250731
["ID","MTS","AMOUNT","RATE_DAILY","PERIOD"]
[376233218,1753901440744,-151.0,0.000247,2]
[376233219,1753901440753,-500.0,0.000247,2]
[376233220,1753901440762,-151.0,0.000247,2]
[376233221,1753901440771,-151.0,0.000247,2]
[376233222,1753901440780,-151.0,0.000247,2]
[376233223,1753901440790,-151.0,0.000247,2]
[376233224,1753901440799,-151.0,0.000247,2]
[376233225,1753901440808,-181.23702289,0.000247,2]
[376233226,1753901440816,-151.0,0.000247,2]
[376233227,1753901440826,-151.0,0.000247,2]
[376233228,1753901440835,-152.70394576,0.000247,2]
[376233229,1753901440844,-151.30450914,0.000247,2]
[376233230,1753901440853,-265.97574308,0.000247,2]
[376233231,1753901440862,-151.0,0.000247,2]
[376233232,1753901440870,-151.0,0.000247,2]
[376233233,1753901440879,-151.0,0.000247,2]
[376233234,1753901440889,-426.0,0.000247,2]
[376233235,1753901440897,-151.0,0.000247,2]
[376233236,1753901440907,-151.0,0.000247,2]
[376233237,1753901440916,-211.12151948,0.000247,2]
[376233238,1753901440925,-151.0,0.000247,2]
[376233239,1753901440934,-151.0,0.00024726,7]
[376233240,1753901440943,-272.22985294,0.00024728,11]
[376233241,1753901440952,-168.0,0.00024737,2]
[376233243,1753901440964,-710.29,0.00024753,2]
[376233244,1753901440974,-1662.36,0.00024754,2]
[376233246,1753901440984,-592.17,0.00024754,2]
[376233249,1753901440993,-1056.95,0.00024754,2]
[376233251,1753901441003,-509.9,0.00024754,2]
[376233252,1753901441012,-514.42,0.00024754,2]
[376233254,1753901441022,-675.24,0.00024754,2]
[376233256,1753901441031,-593.12,0.00024755,2]
[376233258,1753901441042,-151.0,0.00024755,7]
[376233261,1753901441051,-1601.69,0.00024755,2]
[376233263,1753901441061,-600.0,0.00024768,2]
[376233265,1753901441071,-537.85159755,0.000248,2]
[376233267,1753901441081,-600.0,0.00024821,2]
[376233269,1753901441090,-600.0,0.00024831,2]
[376233271,1753901441099,-500.0,0.00024832,2]
[376233273,1753901441109,-151.0,0.00024838,7]
[376233275,1753901441118,-155.838336,0.00024849,4]
[376233277,1753901441127,-156.143482,0.00024849,4]
[376233278,1753901441136,-500.0,0.00024856,2]
[376233280,1753901441146,-600.0,0.00024871,2]
[376233282,1753901441156,-500.0,0.00024873,2]
[376233284,1753901441166,-503.76840278,0.00024873,2]
[376233286,1753901441175,-500.0,0.00024873,2]
[376233288,1753901441184,-223.80859837,0.00024873,2]
[376233291,1753901441194,-500.0,0.00024873,2]
[376233292,1753901441203,-200.0,0.00024873,2]
[376233294,1753901441215,-500.0,0.00024878,2]
[376233296,1753901441225,-500.0,0.0002488,2]
[376233299,1753901441234,-1079.38863902,0.000249,2]
[376233300,1753901441244,-565.48,0.000249,7]
[376233303,1753901441254,-151.0,0.000249,7]
[376233304,1753901441263,-151.0,0.000249,7]
[376233306,1753901441272,-151.0,0.000249,7]
[376233309,1753901441281,-151.0,0.000249,7]
[376233310,1753901441290,-151.0,0.000249,7]
[376233313,1753901441300,-151.0,0.000249,7]
[376233315,1753901441309,-151.0,0.000249,7]
[376233317,1753901441319,-151.0,0.000249,7]
[376233318,1753901441328,-151.0,0.000249,7]
[376233321,1753901441338,-41209.78,0.000249,2]
[376233323,1753901441347,-151.0,0.000249,7]
[376233325,1753901441357,-223.031252,0.000249,7]
[376233327,1753901441366,-500.0,0.000249,5]
[376233329,1753901441376,-64458.90363202,0.000249,2]
[376233346,1753901441528,-460.0,0.00019273,2]
[376233348,1753901441538,-9294.02052098,0.00021366,2]
[376233350,1753901441547,-451.51,0.00022278,10]
[376233352,1753901441556,-241.32295377,0.00023259,2]
[376233354,1753901441566,-158.08406313,0.00023259,2]
[376233356,1753901441575,-332.0,0.00023702,15]
[376233358,1753901441586,-50485.07557255,0.000249,2]
[376233360,1753901441598,-760.18,0.000249,2]
[376233362,1753901441610,-3369.60634659,0.000249,2]
[376233364,1753901441621,-481.47425679,0.000249,2]
[376233367,1753901441638,-869.77412244,0.000249,2]
[376233369,1753901441649,-18203.79174675,0.000249,2]
[376233371,1753901441661,-3779.21875025,0.000249,2]
[376233374,1753901441672,-5951.08891974,0.000249,2]
[376233377,1753901441701,-4865.80985281,0.00023896,2]
[376233401,1753901441908,-27.74540226,0.00023896,2]
[376233403,1753901441919,-767.37837312,0.00023896,2]
[376233405,1753901441930,-2082.96014719,0.00023896,2]
[376233524,1753901442968,-1550.12674559,0.00023896,2]
[376233528,1753901442978,-606567.58507287,0.000249,2]
[376233531,1753901442987,-500.0,0.000249,5]
[376233533,1753901442997,-721.0,0.00024901,2]
[376233536,1753901443008,-460.0,0.00024902,2]
[376233539,1753901443016,-323.299744,0.00024904,2]
[376233542,1753901443026,-600.0,0.00024913,2]
[376233545,1753901443035,-600.0,0.00024916,2]
[376233548,1753901443044,-600.0,0.00024934,2]
[376233552,1753901443054,-1500.0,0.00024946,2]
[376233555,1753901443063,-600.0,0.00024967,2]
[376233557,1753901443073,-272.22985294,0.00024969,12]
[376233561,1753901443082,-500.0,0.00024974,2]
[376233564,1753901443092,-151.0,0.00024974,2]
[376233568,1753901443101,-426.0,0.00024974,2]
[376233571,1753901443111,-600.0,0.00024976,2]
[376233572,1753901443120,-21414.1684896,0.00025,14]
[376233576,1753901443130,-155.838336,0.00025,5]
[376233578,1753901443140,-710.29,0.00025027,2]
[376233582,1753901443149,-1662.36,0.00025028,2]
[376233584,1753901443158,-592.17,0.00025028,2]
[376233586,1753901443168,-1056.95,0.00025028,2]
[376233588,1753901443178,-509.9,0.00025028,2]
[376233590,1753901443188,-514.42,0.00025028,2]
[376233592,1753901443197,-675.24,0.00025028,2]
[376233594,1753901443206,-593.12,0.00025029,2]
[376233596,1753901443219,-1601.69,0.00025029,2]
[376233598,1753901443229,-600.0,0.00025042,2]
[376233600,1753901443238,-600.0,0.00025049,2]
[376233602,1753901443247,-600.0,0.0002506,2]
[376233604,1753901443256,-500.0,0.00025125,2]
[376233606,1753901443266,-966.45,0.0002513,2]
[376233608,1753901443276,-721.0,0.00025175,2]
[376233610,1753901443285,-460.0,0.00025176,2]
[376233612,1753901443294,-151.0,0.00025176,6]
[376233614,1753901443304,-600.0,0.00025186,2]
[376233616,1753901443314,-2347.7,0.00025192,7]
[376233618,1753901443323,-600.0,0.00025201,2]
[376233620,1753901443333,-168.0,0.00025204,2]
[376233622,1753901443342,-155.838336,0.0002521,2]
[376233624,1753901443352,-272.22985294,0.0002521,12]
[376233626,1753901443362,-155.838336,0.0002524,15]
[376233628,1753901443372,-500.0,0.00025248,2]
[376233630,1753901443382,-198.0,0.00025248,2]
[376233632,1753901443391,-426.0,0.00025248,2]
[376233634,1753901443401,-168.0,0.00025249,2]
[376233636,1753901443410,-500.0,0.00025254,2]
[376233638,1753901443420,-600.0,0.00025259,2]
[376233640,1753901443429,-600.0,0.00025264,2]
[376233642,1753901443439,-160.1336292,0.00025283,2]
[376233644,1753901443449,-160.1336292,0.00025283,2]
[376233646,1753901443458,-578.2915207,0.00025283,2]
[376233648,1753901443471,-178.4701425,0.00025283,2]
[376233651,1753901443480,-160.1336292,0.00025283,2]
[376233654,1753901443490,-578.2915207,0.00025283,2]
[376233657,1753901443499,-578.2915207,0.00025283,2]
[376233660,1753901443509,-178.4701425,0.00025283,2]
[376233664,1753901443519,-178.4701425,0.00025283,2]
[376233665,1753901443529,-356.2040351,0.00025283,2]
[376233667,1753901443538,-2347.7,0.00025292,7]
[376233670,1753901443548,-205.0,0.000253,14]
[376233672,1753901443558,-710.29,0.00025301,2]
[376233674,1753901443568,-1662.36,0.00025302,2]
[376233676,1753901443580,-592.17,0.00025302,2]
[376233678,1753901443590,-1056.95,0.00025302,2]
[376233679,1753901443599,-509.9,0.00025302,2]
[376233681,1753901443608,-514.42,0.00025302,2]
[376233683,1753901443618,-675.24,0.00025302,2]
[376233686,1753901443629,-593.12,0.00025303,2]
[376233687,1753901443638,-1601.69,0.00025303,2]
[376233690,1753901443649,-600.0,0.00025318,2]
[376233692,1753901443658,-600.0,0.00025347,2]
[376233694,1753901443670,-230.32,0.00025349,2]
[376233696,1753901443680,-177.26928288,0.00025389,2]
[376233698,1753901443689,-2347.7,0.00025392,7]
[376233700,1753901443699,-500.0,0.00025409,2]
[376233702,1753901443708,-600.0,0.00025419,2]
[376233704,1753901443722,-501.48761306,0.00025421,2]
[376233706,1753901443732,-400.0,0.00025421,2]
[376233708,1753901443742,-600.0,0.00025423,2]
[376233710,1753901443751,-500.0,0.00025427,2]
[376233712,1753901443761,-500.0,0.0002544,2]
[376233714,1753901443771,-500.0,0.00025447,2]
[376233716,1753901443781,-721.0,0.00025449,2]
[376233718,1753901443791,-463.4,0.0002545,2]
[376233720,1753901443802,-460.0,0.0002545,2]
[376233722,1753901443812,-272.22985294,0.00025452,13]
[376233724,1753901443823,-16292.04497448,0.0002547,2]
[376233726,1753901443832,-2347.7,0.00025492,7]
[376233728,1753901443843,-2000.0,0.00025494,2]
[376233730,1753901443853,-1000.0,0.000255,2]
[376233732,1753901443863,-500.0,0.0002552,5]
[376233734,1753901443873,-500.0,0.00025522,2]
[376233736,1753901443882,-426.0,0.00025522,2]
[376233738,1753901443892,-5000.0,0.00025532,3]
[376233740,1753901443901,-168.0,0.00025546,2]
[376233742,1753901443911,-710.29,0.00025575,2]
[376233744,1753901443920,-1662.45138425,0.00025576,2]
[376233746,1753901443929,-592.24,0.00025576,2]
[376233748,1753901443939,-1057.1373479,0.00025576,2]
[376233750,1753901443948,-510.12604085,0.00025576,2]
[376233752,1753901443958,-514.42892898,0.00025576,2]
[376233753,1753901443970,-675.26113441,0.00025576,2]
[376233755,1753901443979,-593.29,0.00025577,2]
[376233757,1753901443990,-1601.80865728,0.00025577,2]
[376233759,1753901444006,-2347.7,0.00025592,7]
[376233761,1753901444016,-2000.0,0.000256,2]
[376233764,1753901444025,-600.0,0.0002561,2]
[376233766,1753901444035,-168.0,0.00025616,2]
[376233768,1753901444044,-500.0,0.00025651,2]
[376233770,1753901444054,-155.838336,0.00025663,3]
[376233772,1753901444063,-2347.7,0.00025692,7]
[376233774,1753901444073,-272.22985294,0.00025693,13]
[376233776,1753901444082,-721.0,0.00025723,2]
[376233778,1753901444091,-463.4,0.00025724,2]
[376233780,1753901444101,-538.35,0.00025724,2]
[376233782,1753901444111,-500.0,0.0002573,2]
[376233784,1753901444120,-600.0,0.00025734,2]
[376233786,1753901444130,-500.0,0.00025735,2]
[376233788,1753901444139,-500.0,0.00025753,4]
[376233790,1753901444148,-600.0,0.00025792,2]
[376233792,1753901444158,-2347.7,0.00025792,7]
[376233794,1753901444167,-500.0,0.00025796,2]
[376233796,1753901444177,-426.0,0.00025796,2]
[376233798,1753901444186,-600.0,0.00025828,2]
[376233800,1753901444195,-600.0,0.00025861,2]
[376233802,1753901444205,-500.0,0.00025873,2]
[376233804,1753901444217,-3314.34564923,0.00025876,11]
[376233806,1753901444231,-264.53791738,0.00025876,11]
[376233809,1753901444244,-336.92244762,0.00025876,11]
[376233811,1753901444256,-3651.5,0.00025876,11]
[376233813,1753901444268,-18159.34929281,0.00025876,11]
[376233815,1753901444286,-414.32156234,0.00025876,11]
[376233818,1753901444301,-39433.13693355,0.00025876,11]
[376233945,1753901445761,-168.896648,0.00023284,2]
[376233947,1753901445770,-168.896648,0.00023558,2]
[376233949,1753901445780,-23114.206704,0.00025876,11]
[376233951,1753901445792,-467.6,0.00025876,11]
[376233953,1753901445803,-7580.00000011,0.00025876,11]
[376233961,1753901445872,-412.3301306,0.00025876,11]
[376233964,1753901445884,-302.10002581,0.00025876,11]
[376233966,1753901445896,-22442.11325425,0.00025876,11]
[376233970,1753901445927,-678.92998736,0.00025876,11]
[376236464,1753902416109,-1200.0,0.00019272,2]
[376236465,1753902416133,-458.0,0.00019273,2]
[376236466,1753902416155,-460.0,0.00019273,2]
[376236467,1753902416176,-460.0,0.00019273,2]
[376236468,1753902416214,-460.0,0.00019273,2]
[376236469,1753902416236,-460.0,0.00019273,2]
[376236470,1753902416257,-422.386704,0.00019273,2]
[376236471,1753902416280,-432.30374484,0.00019273,2]
[376236472,1753902416301,-460.0,0.00019273,2]
[376236473,1753902416322,-460.0,0.00019273,2]
[376236474,1753902416342,-177.30260175,0.00019273,2]
[376236475,1753902416364,-460.0,0.00019273,2]
[376236476,1753902416386,-460.0,0.00019273,2]
[376236477,1753902416408,-460.0,0.00019273,2]
[376236478,1753902416429,-486.02,0.00019273,2]
[376236479,1753902416456,-460.0,0.00019273,2]
[376236480,1753902416477,-547.48,0.00019273,2]
[376236481,1753902416497,-460.0,0.00019273,2]
[376236482,1753902416518,-460.0,0.00019273,2]
[376236483,1753902416542,-460.0,0.00019273,2]
[376236484,1753902416565,-460.0,0.00019273,2]
[376236485,1753902416599,-460.0,0.00019273,2]
[376236486,1753902416627,-500.0,0.00019273,2]
[376236487,1753902416659,-460.0,0.00019273,2]
[376236488,1753902416689,-460.0,0.00019273,2]
[376236489,1753902416720,-460.0,0.00019273,2]
[376236490,1753902416744,-460.0,0.00019273,2]
[376236491,1753902416770,-460.0,0.00019273,2]
[376236492,1753902416797,-460.0,0.00019273,2]
[376236493,1753902416822,-460.0,0.00019273,2]
[376236494,1753902416846,-353.59793941,0.00019273,2]
[376236576,1753902638469,-106.40206059,0.00019273,2]
[376236579,1753902638480,-460.0,0.00019273,2]
[376236581,1753902638489,-417.34,0.00019273,2]
[376236583,1753902638499,-460.0,0.00019273,2]
[376236585,1753902638508,-460.0,0.00019273,2]
[376236586,1753902638517,-460.0,0.00019273,2]
[376236588,1753902638527,-460.0,0.00019273,2]
[376236590,1753902638536,-460.0,0.00019273,2]
[376236592,1753902638545,-460.0,0.00019273,2]
[376236594,1753902638555,-460.0,0.00019273,2]
[376236596,1753902638564,-414.93967277,0.00019273,2]
[376236598,1753902638573,-460.0,0.00019273,2]
[376236600,1753902638583,-532.95165425,0.00019273,2]
[376236602,1753902638592,-460.0,0.00019273,2]
[376236604,1753902638602,-460.0,0.00019273,2]
[376236606,1753902638612,-460.0,0.00019274,2]
[376236608,1753902638621,-460.0,0.00019274,2]
[376236610,1753902638635,-460.0,0.00019274,2]
[376236612,1753902638645,-460.0,0.00019276,2]
[376236614,1753902638655,-460.0,0.00019276,2]
[376236616,1753902638664,-460.0,0.00019276,2]
[376236618,1753902638674,-460.0,0.00019547,2]
[376236620,1753902638685,-460.0,0.00019547,2]
[376236622,1753902638695,-460.0,0.00019547,2]
[376236624,1753902638704,-460.0,0.00019547,2]
[376236626,1753902638713,-460.0,0.00019547,2]
[376236628,1753902638722,-460.0,0.00019547,2]
[376236630,1753902638732,-460.0,0.00019547,2]
[376236631,1753902638742,-460.0,0.00019547,2]
[376236633,1753902638752,-524.70471307,0.00019547,2]
[376236634,1753902638762,-460.0,0.00019547,2]
[376236635,1753902638774,-346.72,0.00019547,2]
[376236636,1753902638784,-460.0,0.00019547,2]
[376236637,1753902638794,-460.0,0.00019548,2]
[376236638,1753902638803,-261.05140624,0.0001955,2]
[376236640,1753902638814,-241.82,0.0001955,2]
[376236641,1753902638824,-200.0,0.00019657,15]
[376236642,1753902638834,-200.0,0.00019657,15]
[376236643,1753902638844,-200.0,0.00019657,15]
[376236644,1753902638855,-200.0,0.00019657,15]
[376236645,1753902638865,-200.0,0.00019657,15]
[376236647,1753902638879,-200.0,0.00019657,15]
[376236649,1753902638888,-200.0,0.00019657,15]
[376236651,1753902638897,-200.0,0.00019657,15]
[376236653,1753902638908,-460.0,0.00019821,2]
[376236655,1753902638917,-257.42,0.00019821,2]
[376236656,1753902638928,-460.0,0.00019821,2]
[376236658,1753902638937,-460.0,0.00019821,2]
[376236660,1753902638946,-460.0,0.00019822,2]
[376236662,1753902638956,-13000.58259017,0.0002,2]
[376236664,1753902638965,-460.0,0.00020095,2]
[376236666,1753902638975,-460.0,0.00020095,2]
[376236668,1753902638985,-460.0,0.00020096,2]
[376236669,1753902638994,-460.0,0.00020369,2]
[376236670,1753902639004,-460.0,0.00020369,2]
[376236671,1753902639014,-460.0,0.0002037,2]
[376236673,1753902639023,-460.0,0.00020643,2]
[376236675,1753902639032,-460.0,0.00020643,2]
[376236677,1753902639041,-460.0,0.00020644,2]
[376236679,1753902639050,-453.36,0.00020917,2]
[376236681,1753902639059,-348.64,0.00020917,2]
[376236683,1753902639068,-468.5,0.00020918,2]
[376236685,1753902639080,-160.0,0.00020958,2]
[376236687,1753902639090,-231.43925844,0.00020958,2]
[376236689,1753902639099,-160.0,0.00020958,2]
[376236690,1753902639108,-12639.5777639,0.00021362,2]
[376236692,1753902639119,-160.0,0.00021362,2]
[376236694,1753902639131,-250.0,0.0002141,2]
[376236696,1753902639140,-200.0,0.00021584,15]
[376236698,1753902639151,-200.0,0.00021584,15]
[376236700,1753902639161,-200.0,0.00021584,15]
[376236702,1753902639171,-200.0,0.00021584,15]
[376236704,1753902639180,-200.0,0.00021584,15]
[376236707,1753902639189,-200.0,0.00021584,15]
[376236709,1753902639199,-200.0,0.00021584,15]
[376236711,1753902639208,-200.0,0.00021584,15]
[376236712,1753902639217,-200.0,0.00021584,15]
[376236715,1753902639227,-200.0,0.00021584,15]
[376236717,1753902639237,-240.0,0.00021584,15]
[376236719,1753902639247,-385.264,0.00021738,2]
[376236721,1753902639257,-500.0,0.00022346,2]
[376236723,1753902639266,-742.01,0.00023,2]
[376236724,1753902639277,-160.0,0.00023,2]
[376236727,1753902639287,-2146.0,0.00023211,2]
[376236728,1753902639296,-970.0,0.00023211,2]
[376236731,1753902639306,-635.0,0.00023211,2]
[376236732,1753902639314,-407.0,0.00023211,2]
[376236734,1753902639324,-425.782,0.00023211,2]
[376236736,1753902639333,-500.0,0.00023287,2]
[376236738,1753902639342,-500.0,0.00023463,2]
[376236740,1753902639352,-200.0,0.000237,15]
[376236742,1753902639361,-200.0,0.000237,15]
[376236744,1753902639371,-200.0,0.000237,15]
[376236746,1753902639385,-200.0,0.000237,15]
[376236749,1753902639394,-200.0,0.000237,15]
[376236751,1753902639403,-200.0,0.000237,15]
[376236753,1753902639412,-200.0,0.000237,15]
[376236756,1753902639422,-200.0,0.000237,15]
[376236758,1753902639431,-200.0,0.000237,15]
[376236760,1753902639441,-200.0,0.000237,15]
[376236762,1753902639450,-200.0,0.000237,15]
[376236764,1753902639459,-200.0,0.000237,15]
[376236766,1753902639469,-200.0,0.000237,15]
[376236769,1753902639479,-200.0,0.000237,15]
[376236771,1753902639488,-332.0,0.000237,15]
[376236775,1753902639498,-586.92,0.00023786,7]
[376236778,1753902639507,-586.92,0.00023886,7]
[376236780,1753902639517,-586.92,0.00023986,7]
[376236782,1753902639526,-586.94,0.00024086,7]
[376236784,1753902639536,-434.10066384,0.000243,2]
[376236786,1753902639545,-168.0,0.00024414,2]
[376236789,1753902639555,-500.0,0.00024433,2]
[376236792,1753902639564,-168.0,0.00024486,2]
[376236795,1753902639574,-500.0,0.00024499,2]
[376236798,1753902639583,-500.0,0.00024504,2]
[376236801,1753902639592,-500.0,0.00024568,2]
[376236804,1753902639602,-168.0,0.00024623,2]
[376236806,1753902639611,-300.0,0.00024657,4]
[376236808,1753902639621,-174.32,0.00024657,4]
[376236810,1753902639639,-380.0,0.00024658,2]
[376236813,1753902639649,-500.0,0.00024765,2]
[376236816,1753902639659,-194.81382928,0.00024769,2]
[376236819,1753902639669,-500.0,0.00024779,2]
[376236822,1753902639679,-500.0,0.00024794,2]
[376236825,1753902639688,-1138.0,0.000248,2]
[376236828,1753902639698,-168.0,0.00024872,2]
[376236830,1753902639708,-190.0,0.00024932,2]
[376236832,1753902639717,-500.0,0.00024938,2]
[376236834,1753902639727,-500.0,0.00024946,2]
[376236836,1753902639736,-168.0,0.00025081,2]
[376236838,1753902639746,-500.0,0.00025091,2]
[376236840,1753902639756,-173.31302,0.00025096,2]
[376236842,1753902639765,-1982.659172,0.000251,5]
[376236844,1753902639774,-500.0,0.00025129,2]
[376236846,1753902639783,-500.0,0.00025147,2]
[376236848,1753902639793,-168.0,0.00025194,2]
[376236850,1753902639802,-500.0,0.00025203,2]
[376236852,1753902639811,-500.0,0.00025218,2]
[376236854,1753902639820,-500.0,0.0002527,2]
[376236856,1753902639830,-500.0,0.00025296,2]
[376236858,1753902639839,-500.0,0.00025304,2]
[376236859,1753902639849,-168.0,0.00025353,2]
[376236861,1753902639859,-500.0,0.00025376,2]
[376236863,1753902639872,-227.39,0.00025384,2]
[376236865,1753902639890,-500.0,0.00025449,2]
[376236867,1753902639900,-500.0,0.00025461,2]
[376236869,1753902639909,-500.0,0.00025489,2]
[376236871,1753902639919,-500.0,0.0002551,5]
[376236873,1753902639928,-500.0,0.0002551,5]
[376236875,1753902639937,-500.0,0.0002551,5]
[376236877,1753902639947,-500.0,0.00025537,2]
[376236879,1753902639956,-500.0,0.00025563,2]
[376236881,1753902639965,-500.0,0.00025621,2]
[376236883,1753902639974,-500.0,0.00025629,2]
[376236885,1753902639983,-500.0,0.00025644,2]
[376236887,1753902639992,-500.0,0.00025646,2]
[376236889,1753902640001,-168.0,0.00025653,2]
[376236891,1753902640011,-15893.53,0.00025656,11]
[376236893,1753902640020,-94851.48,0.00025656,11]
[376236895,1753902640029,-155.838336,0.0002569,14]
[376236897,1753902640039,-153.0,0.00025699,2]
[376236899,1753902640048,-153.0,0.00025699,2]
[376236901,1753902640061,-609.41933494,0.000257,2]
[376236903,1753902640071,-500.0,0.00025722,2]
[376236905,1753902640081,-500.0,0.00025753,4]
[376236907,1753902640094,-500.0,0.00025764,2]
[376236909,1753902640104,-500.0,0.00025773,2]
[376236911,1753902640113,-151.0,0.00025796,2]
[376236913,1753902640122,-500.0,0.00025796,2]
[376236915,1753902640136,-151.0,0.00025796,2]
[376236917,1753902640145,-500.0,0.00025796,2]
[376236919,1753902640154,-168.0,0.00025813,2]
[376236921,1753902640165,-641.24194787,0.00025846,2]
[376236923,1753902640175,-500.0,0.00025851,2]
[376236925,1753902640184,-500.0,0.00025864,2]
[376236927,1753902640192,-154.74537257,0.00025873,2]
[376236929,1753902640202,-151.0,0.00025873,2]
[376236931,1753902640212,-210.07253599,0.00025873,2]
[376236933,1753902640221,-168.0,0.00025885,2]
[376236935,1753902640230,-2347.7,0.00025892,7]
[376236937,1753902640240,-500.0,0.00025907,2]
[376236939,1753902640249,-500.0,0.00025909,2]
[376236941,1753902640258,-3098.00684033,0.00025918,2]
[376236943,1753902640268,-500.0,0.00025942,2]
[376236945,1753902640277,-450.2,0.00025955,10]
[376236947,1753902640287,-168.0,0.00025956,2]
[376236949,1753902640295,-500.0,0.00025968,2]
[376236951,1753902640304,-153.0,0.00025973,2]
[376236953,1753902640313,-153.0,0.00025973,2]
[376236955,1753902640322,-153.0,0.00025973,2]
[376236956,1753902640331,-339.97,0.00025982,10]
[376236959,1753902640341,-540.25,0.00025982,10]
[376236961,1753902640351,-648.29,0.0002599,10]
[376236962,1753902640361,-35795.26,0.00025992,11]
[376236965,1753902640372,-2347.7,0.00025992,7]
[376236966,1753902640389,-161.0,0.00026,5]
[376236969,1753902640399,-6000.0,0.00026,5]
[376236971,1753902640410,-779.49738914,0.00026,7]
[376236973,1753902640420,-500.0,0.00026006,2]
[376236975,1753902640430,-500.0,0.00026011,2]
[376236977,1753902640439,-168.0,0.00026013,2]
[376236978,1753902640448,-213895.897886,0.00026017,2]
[376236980,1753902640460,-1547.54026684,0.00026017,2]
[376236982,1753902640470,-312.94193107,0.00026019,2]
[376236984,1753902640480,-4047.64532602,0.00026019,2]
[376236987,1753902640490,-4047.64532602,0.00026019,2]
[376236989,1753902640499,-4047.64532602,0.00026019,2]
[376236991,1753902640509,-4047.64532602,0.00026019,2]
[376236993,1753902640519,-4047.64532602,0.00026019,2]
[376236994,1753902640528,-4047.64532602,0.00026019,2]
[376236996,1753902640537,-4047.64532602,0.00026019,2]
[376236999,1753902640547,-4047.64532602,0.00026019,2]
[376237000,1753902640556,-4047.64532602,0.00026019,2]
[376237002,1753902640566,-4047.64532602,0.00026019,2]
[376237005,1753902640575,-4047.64532602,0.00026019,2]
[376237006,1753902640584,-4047.64532602,0.00026019,2]
[376237009,1753902640595,-4047.64532602,0.00026019,2]
[376237011,1753902640605,-4047.64532602,0.00026019,2]
[376237013,1753902640614,-4047.64532602,0.00026019,2]
[376237015,1753902640623,-4047.64532602,0.00026019,2]
[376237017,1753902640639,-4047.64532602,0.00026019,2]
[376237019,1753902640648,-4047.64532602,0.00026019,2]
[376237021,1753902640657,-4047.64532602,0.00026019,2]
[376237023,1753902640667,-4047.64532602,0.00026019,2]
[376237025,1753902640676,-4047.64532602,0.00026019,2]
[376237027,1753902640685,-4047.64532602,0.00026019,2]
[376237029,1753902640694,-4047.64532602,0.00026019,2]
[376237031,1753902640704,-4047.64532602,0.00026019,2]
[376237033,1753902640713,-4047.64532602,0.00026019,2]
[376237034,1753902640722,-3173.48320425,0.00026019,2]
[376237037,1753902640742,-874.16212177,0.00026019,2]
[376237039,1753902640751,-4047.64532602,0.00026019,2]
[376237041,1753902640761,-4047.64532602,0.00026019,2]
[376237043,1753902640770,-4047.64532602,0.00026019,2]
[376237045,1753902640780,-4047.64532602,0.00026019,2]
[376237047,1753902640790,-4047.64532602,0.00026019,2]
[376237049,1753902640799,-4047.64532602,0.00026019,2]
[376237051,1753902640809,-3842.46592211,0.00026019,2]
[376237053,1753902640821,-205.17940391,0.00026019,2]
[376237055,1753902640831,-241.77439609,0.00026019,2]